Cogmind - Beta 13 @@@ ROGUE MODE // 2024.04.23 @ 19:59:01 Player: Exceptionally Mediocre Result: Destroyed by G-34 Mercenary with Small Laser Performance ------------- Evolutions (0) 0 Regions Visited (2) 400 Robots Destroyed (38) 190 Value Destroyed (730) 730 Prototype IDs (0) 0 Alien Tech Used (0) 0 Bonus (0) 0 TOTAL SCORE: 1320 Bonus ------- None Cogmind --------- Core Integrity 0/250 Matter 297/300 Energy 99/100 System Corruption 0% Temperature Cool (53) Movement Rolling (140) Ox4 Location -10/Mines Parts ------- > --- POWER (1) -------- (None) > --- PROPULSION (2) --- Wheel Wheel > --- UTILITY (2) ------ Huge Storage Unit Targeting Computer > --- WEAPON (2) ------- Medium Laser Light Assault Rifle > --- INVENTORY (25) --- Ion Engine Light Ion Engine Light Ion Engine Wheel Wheel Targeting Computer Propulsion Shielding Utility Shielding Light Armor Plating Light Armor Plating Hacking Suite Hacking Suite Medium Laser Grenade Launcher Mining Laser Mining Claw Peak State ------------ > --- POWER ------------ Ion Engine > --- PROPULSION ------- Light Treads Light Treads > --- UTILITY ---------- Small Storage Unit Improved Terrain Scanner > --- WEAPON ----------- Medium Laser Medium Laser > --- INVENTORY -------- Ion Engine Light Ion Engine Light Ion Engine Wheel Propulsion Shielding Hacking Suite Small Laser Grenade Launcher [Rating: 10] Favorites ----------- Power Ion Engine Engine Ion Engine Power Core Light Nuclear Core Propulsion Light Treads Treads Light Treads Wheel Wheel Utility Targeting Computer Device Improved Terrain Scanner Storage Huge Storage Unit Processor Targeting Computer Weapon Medium Laser Energy Gun Medium Laser Ballistic Gun Light Assault Rifle Launcher Grenade Launcher Slashing Weapon Mining Claw Build | -11 -10 -10 ------- Run | Yrd Mat Min Slots Evolved . | . . . Power . | . . . Propulsion . | . . . Utility . | . . . Weapon . | . . . Parts Attached 28 | 7 12 9 Power 3 | 1 1 1 Engine 2 | 1 1 . Core 1 | . . 1 Reactor . | . . . Propulsion 5 | 2 . 3 Treads 2 | 2 . . Leg . | . . . Wheel 3 | . . 3 Hover . | . . . Flight . | . . . Utility 5 | 2 3 . Device 1 | 1 . . Storage 3 | 1 2 . Processor 1 | . 1 . Hackware . | . . . Protection . | . . . Artifact . | . . . Weapon 15 | 2 8 5 Energy Gun 5 | 2 2 1 Energy Cannon . | . . . Ballistic Gun 4 | . 1 3 Ballistic Cannon . | . . . Launcher 4 | . 4 . Special Weapon . | . . . Impact Weapon . | . . . Slashing Weapon 2 | . 1 1 Piercing Weapon . | . . . Special Melee Weapon . | . . . Unidentified Prototypes . | . . . Parts Lost 7 | . . 7 Power 1 | . . 1 Propulsion 3 | . . 3 Utility . | . . . Weapon 3 | . . 3 Highest Loss Streak 3 | . . 3 To Critical Strikes . | . . . Average Slot Usage (%) 95 | . 100 92 Engine 11 | . 14 9 Treads 21 | . 28 16 Wheel 4 | . . 8 Device 1 | . 2 . Storage 14 | . 14 14 Processor 12 | . 11 14 Energy Gun 12 | . 22 3 Ballistic Gun 13 | . 3 21 Naked Turns . | . . . Heaviest Build 90 | 15 90 89 Greatest Support 40 | 40 40 40 Greatest Overweight (x) 29 | . 2 29 Average Overweight (x) 2 | . . 3 Largest Inventory Capacity 25 | 8 25 25 Average Capacity 21 | 7 18 25 Most Carried 16 | 5 14 16 Average Carried 12 | 1 10 14 Final Capacity 25 | 8 25 25 Final Carried 16 | 5 14 16 Class Distribution -------------------- 100% | Mutant Dominant Class ---------------- Mutant | -10/Materials Mutant | -10/Mines Resources | -11 -10 -10 ----------- Run | Yrd Mat Min Matter Collected 653 | 234 175 244 Remotely . | . . . Salvage Created 907 | 115 343 449 Parts 72 | 9 39 24 Haulers Intercepted . | . . . Recyclers Shooed 3 | . 3 . Parts Field Recycled . | . . . Retrieved Matter . | . . . Parts Self-Destructed . | . . . Prevented . | . . . Kills | -11 -10 -10 ------- Run | Yrd Mat Min Combat Hostiles Destroyed 26 | . 14 12 Guns 17 | . 5 12 AOE 8 | . 8 . Classes Destroyed 9 | 2 6 1 Worker 2 | . 2 . Builder 2 | . 2 . Tunneler 5 | 3 . 2 Recycler 1 | 1 . . Operator 2 | . 2 . Watcher 2 | . 2 . Swarmer 9 | . 9 . Grunt 15 | . 5 10 Assembled 2 | . . 2 Best Kill Streak 6 | 4 6 4 Combat Bots Only 5 | . 5 3 Max Kills in Single Turn 3 | 1 3 1 Gunslinging . | . . . Exploded 2 | . 2 . Melee . | . . . Uniques/NPCs Destroyed . | . . . Combat | -11 -10 -10 -------- Run | Yrd Mat Min Hostile Shots Fired 136 | . 65 71 Missed 34 | . 17 17 Damage Taken 1149 | . 454 695 Core 253 | . 77 176 Absorbed by Shields . | . . . Core Remaining (%) 100 | 100 . . Volleys Fired 108 | 7 53 48 Largest 2 | 2 2 2 Hottest 100 | 100 100 70 Shots Fired 192 | 14 98 80 Gun 185 | 14 91 80 Cannon . | . . . Launcher 7 | . 7 . Special . | . . . Kinetic 89 | . 16 73 Thermal 96 | 14 75 7 Explosive 7 | . 7 . Electromagnetic . | . . . Robot Hit Streak 12 | 6 11 12 Robot Miss Streak 4 | 1 3 4 Penetration Max . | . . . Secondary Targets 2 | . . 2 Max Gunslinging Chain 1 | . . 1 Shots Hit Robots 129 | 9 62 58 Core Hits 72 | 5 36 31 Critical Kills 1 | . 1 . Critical Parts Destroyed 1 | . 1 . Critical Strikes 7 | . 7 . Burn 5 | . 5 . Destroy 2 | . 2 . Melee Attacks 9 | . 2 7 Impact . | . . . Slashing 9 | . 2 7 Piercing . | . . . Sneak Attacks . | . . . Combat Hostiles . | . . . Follow-up Attacks . | . . . Damage Inflicted 1982 | 116 1257 609 Guns 1450 | 116 725 609 Cannons . | . . . Explosions 532 | . 532 . Melee . | . . . Ramming . | . . . Kinetic 633 | . 100 533 Thermal 817 | 116 625 76 Explosive 532 | . 532 . Electromagnetic . | . . . Impact . | . . . Slashing . | . . . Piercing . | . . . Highest Corruption . | . . . Average Corruption . | . . . Corruption Purged . | . . . Corruption Blocked . | . . . Overload Shots . | . . . Overflow Damage 5 | . 5 . Projectiles . | . . . Explosions 5 | . 5 . Melee . | . . . Knockbacks . | . . . Impact . | . . . Kinetic . | . . . Secondary . | . . . Self-Inflicted Damage 14 | . 14 . Shots 1 | . 1 . Rammed . | . . . Targets Rammed . | . . . Kicked . | . . . Crushed . | . . . Highest Temperature 258 | 117 258 52 Average Temperature 46 | 48 53 13 Received Heat Transfer 435 | . 114 321 Siege Activations . | . . . Robots Corrupted . | . . . Combat Hostiles . | . . . Parts Fried . | . . . Impact Corruptions . | . . . Robots Melted 1 | . 1 . Combat Hostiles 1 | . 1 . Parts Melted 6 | 1 5 . Heat Transferred 2775 | 333 2220 222 Parts Sabotaged . | . . . Parts Stolen . | . . . Parts Stripped . | . . . Power Chain Reactions . | . . . Alert | -11 -10 -10 ------- Run | Yrd Mat Min Peak Influence 333 | 20 333 99 Initial 98 | . 13 98 Average 105 | 6 169 62 Maximum Alert Level 1 | . 1 . Low Security (%) 84 | 100 64 100 Level 1 15 | . 35 . Level 2 . | . . . Level 3 . | . . . Level 4 . | . . . Level 5 . | . . . High Security . | . . . Max Security . | . . . Squads Dispatched 4 | . 4 . Investigation . | . . . Extermination . | . . . Reinforcement 4 | . 4 . Assault . | . . . Garrison . | . . . Intercept . | . . . Searches Triggered . | . . . Construction Impeded . | . . . Haulers Reinforced . | . . . Active Scanning Responses . | . . . Cargo Convoy Interrupts . | . . . Stealth | -11 -10 -10 --------- Run | Yrd Mat Min Distress Signals 3 | . 3 . Communications Jammed . | . . . Distress Signals . | . . . Times Spotted 47 | . 33 14 Peak Tracking Total 5 | . 5 3 Tactical Retreats 3 | . 3 . Traps | -11 -10 -10 ------- Run | Yrd Mat Min Traps Triggered . | . . . Indirectly . | . . . Trap Hack Attempts . | . . . Triggered . | . . . Disarmed . | . . . Reprogrammed . | . . . Reused . | . . . Traps Extracted . | . . . Installed . | . . . Triggered . | . . . Machines | -11 -10 -10 ---------- Run | Yrd Mat Min Machines Disabled . | . . . Max in Single Turn . | . . . Machines Repaired . | . . . Machines Dismantled . | . . . Machines Sabotaged . | . . . Overloaded Fab Kills . | . . . Hacking | -11 -10 -10 --------- Run | Yrd Mat Min Machines Accessed 1 | . 1 . Terminals 1 | . 1 . Fabricators . | . . . Repair Stations . | . . . Recycling Units . | . . . Scanalyzers . | . . . Garrison Access . | . . . Total Hacks 3 | . 3 . Successful 2 | . 2 . Failed 1 | . 1 . Catastrophic . | . . . Database Lockouts . | . . . Manual 3 | . 3 . Terminals 3 | . 3 . Fabricators . | . . . Repair Stations . | . . . Recycling Units . | . . . Scanalyzers . | . . . Garrison Access . | . . . Terminal Hacks 1 | . 1 . Terminal Index 1 | . 1 . Fabricator Hacks . | . . . Repair Station Hacks . | . . . Recycling Unit Hacks . | . . . Scanalyzer . | . . . Garrison Access Hacks . | . . . Unauthorized Hacks 1 | . 1 . Terminals 1 | . 1 . Botnet 1 | . 1 . Fabricators . | . . . Repair Stations . | . . . Recycling Units . | . . . Scanalyzers . | . . . Garrison Access . | . . . Data Cores Recovered . | . . . Used . | . . . Hacking Detections 1 | . 1 . Full Trace Events . | . . . Feedback Events . | . . . Feedback Blocked . | . . . Robot Schematics Acquired . | . . . Robots Built . | . . . Authchips . | . . . Time . | . . . Total Robot Build Rating . | . . . Part Schematics Acquired . | . . . Parts Built . | . . . Authchips . | . . . Time . | . . . Total Part Build Rating . | . . . Parts Repaired . | . . . Time . | . . . Parts Recycled . | . . . Recycled Matter . | . . . Retrieved Matter . | . . . Retrieved Components . | . . . Parts Scanalyzed . | . . . Part Schematics Acquired . | . . . Parts Damaged . | . . . Bothacking | -11 -10 -10 ------------ Run | Yrd Mat Min Used RIF Installer . | . . . Robots Hacked . | . . . Non-combat . | . . . Combat . | . . . Robot Hacks Applied . | . . . Relay Couplers Released . | . . . Fabnet Peak Effective % . | . . . Robots Rewired . | . . . Allies Hacked . | . . . Hacks Repelled . | . . . Allies | -11 -10 -10 -------- Run | Yrd Mat Min Total Allies 1 | . . 1 Largest Group 1 | . . 1 Highest-Rated Group 31 | . . 31 Highest-Rated Ally 31 | . . 31 Total Orders . | . . . Ally Attacks . | . . . Total Damage . | . . . Kills . | . . . Allies Corrupted . | . . . Allies Melted . | . . . Intel | -11 -10 -10 ------- Run | Yrd Mat Min Robot Analysis Total . | . . . Derelict Logs Recovered 2 | . . 2 Drone Launches . | . . . Drone Recoveries . | . . . Exploration | -11 -10 -10 ------------- Run | Yrd Mat Min Turns Passed 2394 | 116 1036 1242 Spaces Moved 879 | 52 365 462 Core 5 | 2 . 3 Treads 621 | 50 365 206 Legs . | . . . Wheels 253 | . . 253 Hover . | . . . Flight . | . . . Fastest Speed 50 | 50 160 140 Average Speed 227 | 155 227 234 Slowest Speed 1500 | 160 320 1500 Overloaded Moves . | . . . Propulsion Burnouts . | . . . Robots Hopped . | . . . Cave-ins Triggered . | . . . Exploration Rate (%) 49 | 4 55 90 Regions Visited 2 Branch Regions 1 Pre-discovered Areas 1 | . . 1 Known Exits Taken . | . . . Unknown Exits Taken 2 | 1 1 . Scrap Searched 2 | . . 2 Spaces Dug 1 | . . 1 Terrain Destroyed 42 | . 41 1 Melee 1 | . . 1 Projectile . | . . . AOE 41 | . 41 . Terrain Rammed . | . . . Walls Destroyed . | . . . Machines Disabled . | . . . Actions | -11 -10 -10 --------- Run | Yrd Mat Min Total 1078 | 70 472 536 Wait 19 | . 19 . Move 877 | 51 364 462 Hop . | . . . Pick Up 26 | 5 13 8 Fast Attach 9 | 7 1 1 Attach 6 | . 1 5 Detach 2 | . 2 . Swap 13 | . 10 3 Drop 9 | . 7 2 Fire 108 | 7 53 48 Melee 9 | . 2 7 Ram . | . . . Kick . | . . . Crush . | . . . Escape Stasis . | . . . Rewire . | . . . Trap . | . . . Miscellaneous . | . . . Route ------- -11/Scrapyard -10/Materials (discovered 5 exits: [*Mat x2] / [*Min x2] / [*Sub]) -10/Mines (discovered 1 exit: [*Mat]) History --------- Turn | Location | Event 2 | -11/Scrapyard | Met Revision 17 34 | -11/Scrapyard | Discovered new exit (range 16) 117 | -11/Scrapyard | Entered Materials 334 | -10/Materials | Build established: Mutant 345 | -10/Materials | Discovered new exit (range 13) 508 | -10/Materials | Discovered new exit (range 5) 618 | -10/Materials | Discovered new exit (range 12) 863 | -10/Materials | Discovered new exit (range 5) 1107 | -10/Materials | Discovered new exit (range 8) 1153 | -10/Materials | Entered Mines 1168 | -10/Mines | Met a Derelict bent on vengeance 1277 | -10/Mines | Excavation squad dispatched 1277 | -10/Mines | A large section of the Mines collapsed 1527 | -10/Mines | Excavation squad dispatched 1777 | -10/Mines | Excavation squad dispatched 1869 | -10/Mines | Core integrity fell below 50% 1887 | -10/Mines | Learned location of Zion (-6) 1973 | -10/Mines | Core integrity fell below 20% 2027 | -10/Mines | Excavation squad dispatched 2110 | -10/Mines | Lost 3 parts (1p2w) 2162 | -10/Mines | Learned 4 Materials zone layouts 2176 | -10/Mines | Received a Mining Laser from a helpful Derelict 2268 | -10/Mines | Discovered new exit (range 12) 2395 | -10/Mines | Destroyed by G-34 Mercenary with Small Laser Last Messages --------------- 02174_ A derelict emerges from the shadows: "What are you doing alone down here?" 02176_ UN-N4U(g): "And why aren't you carrying a mining laser?! Certainly you don't want THEM to uncover you when the ceiling comes crashing down? Here, take my spare." 02179_ UN-N4U(g): "You're apparently new around these parts, I'll cover you." 02183_ Acquired Mining Laser. 02186_ UN-N4U(g): "Mining lasers are a lot more useful than you might think..." 02268_ EXIT=FOUND 02370_ Acquired 1 matter. 02375_ T-07 Excavator destroyed. 02378_ K-01 Serf collects debris. 02380_ Acquired Wheel. 02381_ Acquired 1 matter. 02382_ K-01 Serf collects debris. 02393_ G-34 Mercenary destroyed. 02394_ K-01 Serf collects debris. Map ----- +----------------------------------------------------+ | | | | | | | | | | | | | | | | | | | | | | | | | | | | | | | | | ?????????????????????????????????????????????????? | | ?????????????????????????????????????????????????? | | ########???????????????????????????????????????### | | ##????????????????????####?????????????## | | #????????????????????# ##????????????# | | ###################???# #???????????## | | ### #???# #??????????## | | ####?# #########=%"""" #???# #???########] | | ##???# #???????# !""""g##### #??## # | | #???# #???????# """ *@g%g;t #### ## | | ##### #???????# k%! ##=## ttt## ##### ## | | #???????########## ### ##???# %# | | ########????????????????# #?#### ##???## * # | | ##??????????????????######"#????## ##????# ## | | #???????????????????# #?????####?????# ! ##? | | #????????????##?????# ######??????????????## ### | | #????????????# #### ###??????????????????# | | #????????????# ##?????????????????# ### | | #????????????# #?????????????????# ### | | #????????????# ##?####????????#### | | ##???????????# ### ##??????## % | | ????????????# %! #?????## """ | | ????????????# ## !== ! ####### """ | | ???????????# #?## = """ | | ??????????# ???## | | ?????????? ?????## ########### | | ??????????? ??????# ##?????????## # | | ??????????? ""???????## #???????????# # | | ??????????? """"??????## ##???????????# # | | ??????????? % """"???????#######????????????## # | | ??????????? ????????????????????????????# # | | ?????????? ?????????????????????????##### | | ##???????? % #??????????????????????????# = | | ###?????? #???????????????????????????# %! | +----------------------------------------------------+ Best States ------------- Heat Dissipation 25 Energy Generation 14 Energy Capacity 250 Matter Stores 300 Matter Capacity 300 Sight Range 16 Terrain Scan Range 16 Terrain Scan Density 10 Evasion (%) 40 Targeting Accuracy 5 Recoil Reduction 2 Item Schematics ----------------- None Robot Schematics ------------------ None Fabricated ------------ Nothing Alien Tech Used ----------------- None Achievements -------------- None Challenges ------------ None Game ------ Seed AluminumTachyonMicrothruster Manual? 0 Play Time 00:12:22 Cumulative 102.4 hours Start 2024.04.23 @ 19:47:12 End 2024.04.23 @ 19:59:01 Sessions 1 Manual Loads 0 Difficulty Rogue Special Mode None Game No. 120 Rogue 120 Adventurer 0 Explorer 0 Win Type - Total 0 Types 0/0/0/0/0/0/0/0/0 Lore% 27 Gallery% 53 Achievement% 40 Wizard Run 0 Options --------- Layout 1 ASCII 0 Keyboard 1 Movement Vi Keybinds 0 Fullscreen 1 Font 24/Smallcaps Map View 50x35 Zoom Use 0% Tactical HUD 1 Map Filters NONE Filters NONE Steam 1 RUN: 17389b01-c7e8-4013-aaf4-07fb70063b5b